Workbook

Sheet PFF
A1: PROPOSTA FINANCEIRA FINAL | G1: CODIGO: PFF
A2: NOME DA CONSULTORA:
A3: CONTRATAÇÃO DE SERVIÇOS DE CONSULTORIA, POR MEIO DO SISTEMA DE REGISTRO DE PREÇOS – SRP, PARA CERTIFICAÇÃO DE AGROINDÚSTRIAS DE LÁCTEOS E DE SEUS PRODUTOS NO SERVIÇO DE INSPEÇÃO ESTADUAL – SIE, NO ESTADO DO CEARÁ. | E3: CONTRATANTE: CODEVASF (14ª SR) | G3: SINAPI/CE: 06/2025 (NÃO DESONERADA) UFIRCE/2025 (R$ 6,02969) PESQUISA DE MERCADO: 02/2025
A4: Item | B4: Serviço | C4: Categoria / Insumo | D4: Uni | E4: Qde | F4: CUD | G4: CT
A5: 1.0 | C5: Avaliação Técnica Inicial | G5: =SUM(G6:G6) -> 194934.6
A6: 1.2 | B6: RATI | C6: Relatório de Avaliação Técnica Inicial | D6: Un | E6: 30 | F6: ='CRO-1'!I25 -> 6497.82 | G6: =E6*F6 -> 194934.6
A7: 2.0 | C7: Registro do Estabelecimento | G7: =SUM(G8:G8) -> 501232.2
A8: 2.1 | B8: RRE | C8: Relatório de Registro do Estabelecimento | D8: Un | E8: 30 | F8: ='CRO-1'!J25 -> 16707.74 | G8: =E8*F8 -> 501232.2
A9: 3.0 | C9: Registro do Produto | G9: =SUM(G10:G10) -> 345344.4
A10: 3.1 | B10: RRP | C10: Relatório de Registro do Produto | D10: Un | E10: 90 | F10: ='CRO-1'!K25 -> 3837.16 | G10: =E10*F10 -> 345344.4
A11: 4.0 | C11: Capacitação | G11: =SUM(G12:G12) -> 232898.4
A12: 4.1 | B12: RCAP | C12: Relatório de Capacitação | D12: Un | E12: 30 | F12: ='CRO-1'!L25 -> 7763.28 | G12: =E12*F12 -> 232898.4
A13: 5.0 | C13: Vistoria Final | G13: =SUM(G14:G14) -> 63565.5
A14: 5.1 | B14: RVF | C14: Relatório de Vistoria Final | D14: Un | E14: 30 | F14: ='CRO-1'!M25 -> 2118.85 | G14: =E14*F14 -> 63565.5
A15: 6.0 | C15: Adequação Projeto Padrão Codevasf | G15: =SUM(G16:G16) -> 1873503.3
A16: 6.1 | B16: RAPP | C16: Relatório de Adequação Projeto Padrão Codevasf | D16: Un | E16: 30 | F16: ='CRO-1'!N25 -> 62450.11 | G16: =E16*F16 -> 1873503.3
A17: TOTAL DA PROPOSTA A PREÇO GLOBAL | G17: =G5+G7+G9+G11+G13+G15 -> 3211478.4

Sheet PFF_MOD_MIN
A1: PROPOSTA FINANCEIRA FINAL - MODULO MÍNIMO | G1: CODIGO: PFF
A2: NOME DA CONSULTORA:
A3: CONTRATAÇÃO DE SERVIÇOS DE CONSULTORIA, POR MEIO DO SISTEMA DE REGISTRO DE PREÇOS – SRP, PARA CERTIFICAÇÃO DE AGROINDÚSTRIAS DE LÁCTEOS E DE SEUS PRODUTOS NO SERVIÇO DE INSPEÇÃO ESTADUAL – SIE, NO ESTADO DO CEARÁ. | E3: CONTRATANTE: CODEVASF (14ª SR) | G3: SINAPI/CE: 06/2025 (NÃO DESONERADA) UFIRCE/2025 (R$ 6,02969) PESQUISA DE MERCADO: 02/2025
A4: Item | B4: Serviço | C4: Categoria / Insumo | D4: Uni | E4: Qde | F4: CUD | G4: CT
A5: 1.0 | C5: Avaliação Técnica Inicial | G5: =SUM(G6:G6) -> 6497.82
A6: 1.2 | B6: RATI | C6: Relatório de Avaliação Técnica Inicial | D6: Un | E6: 1 | F6: ='CRO-1'!I25 -> 6497.82 | G6: =E6*F6 -> 6497.82
A7: 2.0 | C7: Registro do Estabelecimento | G7: =SUM(G8:G8) -> 16707.74
A8: 2.1 | B8: RRE | C8: Relatório de Registro do Estabelecimento | D8: Un | E8: 1 | F8: ='CRO-1'!J25 -> 16707.74 | G8: =E8*F8 -> 16707.74
A9: 3.0 | C9: Registro do Produto | G9: =SUM(G10:G10) -> 11511.48
A10: 3.1 | B10: RRP | C10: Relatório de Registro do Produto | D10: Un | E10: 3 | F10: ='CRO-1'!K25 -> 3837.16 | G10: =E10*F10 -> 11511.48
A11: 4.0 | C11: Capacitação | G11: =SUM(G12:G12) -> 7763.28
A12: 4.1 | B12: RCAP | C12: Relatório de Capacitação | D12: Un | E12: 1 | F12: ='CRO-1'!L25 -> 7763.28 | G12: =E12*F12 -> 7763.28
A13: 5.0 | C13: Vistoria Final | G13: =SUM(G14:G14) -> 2118.85
A14: 5.1 | B14: RVF | C14: Relatório de Vistoria Final | D14: Un | E14: 1 | F14: ='CRO-1'!M25 -> 2118.85 | G14: =E14*F14 -> 2118.85
A15: 6.0 | C15: Adequação Projeto Padrão Codevasf | G15: =SUM(G16:G16) -> 62450.11
A16: 6.1 | B16: RAPP | C16: Relatório de Adequação Projeto Padrão Codevasf | D16: Un | E16: 1 | F16: ='CRO-1'!N25 -> 62450.11 | G16: =E16*F16 -> 62450.11
A17: TOTAL DA PROPOSTA A PREÇO GLOBAL | G17: =G5+G7+G9+G11+G13+G15 -> 107049.28

Sheet PFP
A1: PROPOSTA FINANCEIRA DO PROJETO | K1: CODIGO: PFP
A2: NOME DA CONSULTORA:
A3: =PFF!A3 -> CONTRATAÇÃO DE SERVIÇOS DE CONSULTORIA, POR MEIO DO SISTEMA DE REGISTRO DE PREÇOS – SRP, PARA CERTIFICAÇÃO DE AGROINDÚSTRIAS DE LÁCTEOS E DE SEUS PRODUTOS NO SERVIÇO DE INSPEÇÃO ESTADUAL – SIE, NO ESTADO DO CEARÁ. | G3: =PFF!E3 -> CONTRATANTE: CODEVASF (14ª SR) | K3: =PFF!G3 -> SINAPI/CE: 06/2025 (NÃO DESONERADA) UFIRCE/2025 (R$ 6,02969) PESQUISA DE MERCADO: 02/2025
A4: Base | B4: Cod2 | C4: Cod3 | D4: Código | E4: Categoria / Insumo | F4: Uni | G4: Qde | H4: CUD | I4: PU | J4: FatorK | K4: CT | L4: PT
A5: Lei Federal 4.950/A | B5: MO2 | C5: P1 | D5: T1 | E5: Médico Veterinário | F5: h | G5: ='CRO-1'!E11 -> 4320 | H5: ='CRO-1'!F11 -> 130.3 | I5: =ROUND(H5*J5,2) -> 200.69 | J5: ='PFP2.2_FatorKb'!D33 -> 1.5402 | K5: =$G5*H5 -> 562896 | L5: =$G5*I5 -> 866980.8
A6: SINAPI/CE | B6: MO2 | C6: P1 | D6: 90777 | E6: Engenheiro | F6: h | G6: ='CRO-1'!E12 -> 6720 | H6: 130.3 | I6: =ROUND(H6*J6,2) -> 200.69 | J6: ='PFP2.2_FatorKb'!D33 -> 1.5402 | K6: =$G6*H6 -> 875616 | L6: 1348636.8
A7: SINAPI/CE | B7: MO2 | C7: P1 | D7: 90768 | E7: Arquiteto | F7: h | G7: ='CRO-1'!E13 -> 1680 | H7: 127.12 | I7: 195.79 | J7: ='PFP2.2_FatorKb'!D33 -> 1.5402 | K7: 213561.6 | L7: 328927.2
A8: SINAPI/CE | B8: MO2 | C8: P1 | D8: 90775 | E8: Desenhista | F8: h | G8: ='CRO-1'!E14 -> 4560 | H8: 29.79 | I8: 45.88 | J8: ='PFP2.2_FatorKb'!D33 -> 1.5402 | K8: 135842.4 | L8: 209212.8
A9: SENAI | B9: MO2 | C9: P1 | D9: T2 | E9: Instrutor | F9: h | G9: ='CRO-1'!E15 -> 480 | H9: ='CRO-1'!F15 -> 224.06 | I9: 345.1 | J9: ='PFP2.2_FatorKb'!D33 -> 1.5402 | K9: 107548.8 | L9: 165648
A10: CODEVASF | B10: LO | C10: V1 | D10: CPUH-1 | E10: Diarias - Interior | F10: dia | G10: ='CRO-1'!E16 -> 270 | H10: 353.39 | I10: 428.56 | J10: =PFP3_FatorKd!E15 -> 1.2127 | K10: 95415.3 | L10: 115711.2
A11: CODEVASF | B11: LO | C11: V2 | D11: CLP-1 | E11: Veículo tipo Hatch 100cv ou mais (Taxa selic 15%) | F11: dia | G11: ='CRO-1'!E17 -> 270 | H11: ='CRO-1'!F17 -> 108.73 | I11: 131.86 | J11: =PFP3_FatorKd!E15 -> 1.2127 | K11: 29357.1 | L11: 35602.2
A12: CREA-CE | B12: Taxa | C12: TX | D12: T3 | E12: Anotação de Responsabilidade Técnica - ART Engenheiro/Arquiteto 2025 | F12: un | G12: ='CRO-1'!E18 -> 240 | H12: 103.03 | I12: 124.94 | J12: =PFP3_FatorKd!E15 -> 1.2127 | K12: 24727.2 | L12: 29985.6
A13: CRMV-CE | B13: Taxa | C13: TX | D13: T4 | E13: Anotação de Responsabilidade Técnica - ART Médico Veterinário | F13: un | G13: ='CRO-1'!E19 -> 60 | H13: ='CRO-1'!F19 -> 163 | I13: 197.67 | J13: =PFP3_FatorKd!E15 -> 1.2127 | K13: 9780 | L13: 11860.2
A14: Lei Estadual 15.838/15 | B14: Taxa | C14: TX | D14: T5 | E14: Pagamento da Taxa - Análise da documentação | F14: un | G14: ='CRO-1'!E20 -> 30 | H14: ='CRO-1'!F20 -> 346.95 | I14: 420.75 | J14: =PFP3_FatorKd!E15 -> 1.2127 | K14: 10408.5 | L14: 12622.5
A15: Lei Estadual 15.838/15 | B15: Taxa | C15: TX | D15: T6 | E15: Pagamento da Taxa - Registro do Produto | F15: un | G15: ='CRO-1'!E21 -> 90 | H15: ='CRO-1'!F21 -> 60.3 | I15: 73.13 | J15: =PFP3_FatorKd!E15 -> 1.2127 | K15: 5427 | L15: 6581.7
A16: Lei Estadual 15.838/15 | B16: Taxa | C16: TX | D16: T7 | E16: Pagamento da Taxa - Vistoria Final | F16: un | G16: ='CRO-1'!E22 -> 30 | H16: ='CRO-1'!F22 -> 602.97 | I16: 731.22 | J16: =PFP3_FatorKd!E15 -> 1.2127 | K16: 18089.1 | L16: 21936.6
A17: CODEVASF | B17: COT | C17: COT | D17: COT-01 | E17: Laudo de análise fisico-química e microbiológica da água | F17: un | G17: ='CRO-1'!E23 -> 30 | H17: ='CRO-1'!F23 -> 220 | I17: 266.79 | J17: =PFP3_FatorKd!E15 -> 1.2127 | K17: 6600 | L17: 8003.7
A18: SENAI | B18: ROT | C18: ROT | D18: ROT-01 | E18: Desenvolvimento da rotulagem de produtos | F18: un | G18: ='CRO-1'!E24 -> 90 | H18: ='CRO-1'!F24 -> 456 | I18: 552.99 | J18: =PFP3_FatorKd!E15 -> 1.2127 | K18: 41040 | L18: 49769.1
A19: TOTAL DOS CUSTOS DIRETOS | I19: =SUM(K5:K18) -> 2136309
A20: TOTAL DOS ENCARGOS E DISPESAS DIVERSAS | I20: =I21-I19 -> 1075169.4
A21: TOTAL DA PROPOSTA A PREÇO GLOBAL | I21: =SUM(L5:L18) -> 3211478.4
A22: TOTAL DA PROPOSTA | I22: =SUM(I21:L21) -> 3211478.4
A23: OBSERVAÇÃO: Alocar os Insumos MO, com respectivo FatorK, dentro da categoria de vínculo contratual (celetista, autonomo, societario) Uni - unidade de medição do insumo; Qde - Quantidade do Insumo (não pode ocorrer alteração pela Licitante) CUD - Custo Unitário Direto do Insumo (sem encargos, taxas e impostos, valor não pode ser maior que o Orçado pela Codevasf) CT - Custo Total (sem encargos, taxas e impostos) - CT = Qde x CUD FatorK - Taxa de Ressarcimento de Despesas e Encargos (detalhar composição nas Planilhas "PFP2.1", "PFP2.2", "PFP3") PU - Preço Unitário do Insumo (incluído encargos, taxas e impostos) - PU = CUD x FatorK PT - Preço Total do Insumo (incluído encargos, taxas e impostos) - PT = Qde x PU P - Profissionais nível superior nas áreas de Engenharia, Química, Arquitetura, Agronomia e Veterinária, conforme disposições da Lei 4.950-A/66 S - Profissionais de nível superior nas demais áreas de atuação, incluindo Arqueólogo, Biólogo, Geógrafo e Sociólogo T - Profissionais de nível médio técnico nas diversas áreas de atuação A - Profissionais de nível médio de apoio técnico-administrativo

Sheet CROFF
A1: CRONOGRAMA FÍSICO FINANCEIRO | O1: CÓDIGO: CROFF
A2: NOME DA CONSULTORA:
A4: =PFF!A3 -> CONTRATAÇÃO DE SERVIÇOS DE CONSULTORIA, POR MEIO DO SISTEMA DE REGISTRO DE PREÇOS – SRP, PARA CERTIFICAÇÃO DE AGROINDÚSTRIAS DE LÁCTEOS E DE SEUS PRODUTOS NO SERVIÇO DE INSPEÇÃO ESTADUAL – SIE, NO ESTADO DO CEARÁ. | F4: =PFF!E3 -> CONTRATANTE: CODEVASF (14ª SR) | N4: =PFF!G3 -> SINAPI/CE: 06/2025 (NÃO DESONERADA) UFIRCE/2025 (R$ 6,02969) PESQUISA DE MERCADO: 02/2025
A8: Item | B8: Descrição | C8: Total Por Etapa | D8: 30 DIAS | E8: 60 DIAS | F8: 90 DIAS | G8: 120 DIAS | H8: 150 DIAS | I8: 180 DIAS | J8: 210 DIAS | K8: 240 DIAS | L8: 270 DIAS | M8: 300 DIAS | N8: 330 DIAS | O8: 360 DIAS
A9: 1.0 | B9: =PFF!C6 -> Relatório de Avaliação Técnica Inicial | C9: =SUM(D9:O9) -> 1 | D9: 0.1 | E9: 0.1 | F9: 0.2 | G9: 0.2 | H9: 0.2 | I9: 0.2 | J9: 0 | K9: 0 | L9: 0 | M9: 0 | N9: 0 | O9: 0
C10: =PFF!G5 -> 194934.6 | D10: =$C$10*D9 -> 19493.46 | E10: 19493.46 | F10: 38986.92 | G10: 38986.92 | H10: 38986.92 | I10: 38986.92 | J10: 0 | K10: 0 | L10: 0 | M10: 0 | N10: 0 | O10: 0
A11: 2.0 | B11: =PFF!C8 -> Relatório de Registro do Estabelecimento | C11: =SUM(D11:O11) -> 1 | D11: 0 | E11: 0.1 | F11: 0.1 | G11: 0.15 | H11: 0.15 | I11: 0.15 | J11: 0.15 | K11: 0.1 | L11: 0.1 | M11: 0 | N11: 0 | O11: 0
C12: =PFF!G7 -> 501232.2 | D12: =$C$12*D11 -> 0 | E12: =$C$12*E11 -> 50123.22 | F12: =$C$12*F11 -> 50123.22 | G12: 75184.83 | H12: 75184.83 | I12: 75184.83 | J12: 75184.83 | K12: 50123.22 | L12: 50123.22 | M12: 0 | N12: 0 | O12: 0
A13: 3.0 | B13: =PFF!C10 -> Relatório de Registro do Produto | C13: =SUM(D13:O13) -> 1 | D13: 0 | E13: 0 | F13: 0 | G13: 0.1 | H13: 0.1 | I13: 0.2 | J13: 0.2 | K13: 0.2 | L13: 0.2 | M13: 0 | N13: 0 | O13: 0
C14: =PFF!G9 -> 345344.4 | D14: =$C$14*D13 -> 0 | E14: 0 | F14: 0 | G14: =$C$14*G13 -> 34534.44 | H14: 34534.44 | I14: 69068.88 | J14: 69068.88 | K14: 69068.88 | L14: 69068.88 | M14: 0 | N14: 0 | O14: 0
A15: 4.0 | B15: =PFF!C12 -> Relatório de Capacitação | C15: =SUM(D15:O15) -> 1 | D15: 0 | E15: 0 | F15: 0.1 | G15: 0.15 | H15: 0.15 | I15: 0.15 | J15: 0.15 | K15: 0.1 | L15: 0.1 | M15: 0.1 | N15: 0 | O15: 0
C16: =PFF!G11 -> 232898.4 | D16: =$C$16*D15 -> 0 | E16: 0 | F16: 23289.84 | G16: 34934.76 | H16: 34934.76 | I16: 34934.76 | J16: 34934.76 | K16: 23289.84 | L16: 23289.84 | M16: 23289.84 | N16: 0 | O16: 0
A17: 5.0 | B17: =PFF!C14 -> Relatório de Vistoria Final | C17: =SUM(D17:O17) -> 1 | D17: 0 | E17: 0 | F17: 0 | G17: 0 | H17: 0 | I17: 0.1 | J17: 0.15 | K17: 0.15 | L17: 0.15 | M17: 0.15 | N17: 0.15 | O17: 0.15
C18: =PFF!G13 -> 63565.5 | D18: =$C$18*D17 -> 0 | E18: 0 | F18: 0 | G18: 0 | H18: 0 | I18: 6356.55 | J18: 9534.825 | K18: 9534.825 | L18: 9534.825 | M18: 9534.825 | N18: =$C$18*N17 -> 9534.825 | O18: =$C$18*O17 -> 9534.825
A19: 6.0 | B19: =PFF!C16 -> Relatório de Adequação Projeto Padrão Codevasf | C19: =SUM(D19:O19) -> 1 | D19: 0 | E19: 0 | F19: 0 | G19: 0 | H19: 0 | I19: 1 | J19: 0 | K19: 0 | L19: 0 | M19: 0 | N19: 0 | O19: 0
C20: =PFF!G16 -> 1873503.3 | D20: =$C$20*D19 -> 0 | E20: 0 | F20: 0 | G20: 0 | H20: 0 | I20: =$C$20*I19 -> 1873503.3 | J20: =$C$20*J19 -> 0 | K20: =$C$20*K19 -> 0 | L20: =$C$20*L19 -> 0 | M20: =$C$20*M19 -> 0 | N20: =$C$20*N19 -> 0 | O20: =$C$20*O19 -> 0
A21: Porcentagem | D21: =D22/$N$26 -> 0.006069933399 | E21: =E22/$N$26 -> 0.02167745547 | F21: =F22/$N$26 -> 0.03499945072 | G21: =G22/$N$26 -> 0.05718268259 | H21: =H22/$N$26 -> 0.05718268259 | I21: 0.6532926518 | J21: 0.05876523878 | K21: 0.04733544681 | L21: 0.04733544681 | M21: 0.01022104492 | N21: =N22/$N$26 -> 0.00296898307 | O21: =O22/$N$26 -> 0.00296898307
A22: Custo | D22: =D10+D12+D14+D16+D18+D20 -> 19493.46 | E22: =E10+E12+E14+E16+E18+E20 -> 69616.68 | F22: =F10+F12+F14+F16+F18+F20 -> 112399.98 | G22: =G10+G12+G14+G16+G18+G20 -> 183640.95 | H22: =H10+H12+H14+H16+H18+H20 -> 183640.95 | I22: =I10+I12+I14+I16+I18+I20 -> 2098035.24 | J22: =J10+J12+J14+J16+J18+J20 -> 188723.295 | K22: =K10+K12+K14+K16+K18+K20 -> 152016.765 | L22: 152016.765 | M22: =M10+M12+M14+M16+M18+M20 -> 32824.665 | N22: =N10+N12+N14+N16+N18+N20 -> 9534.825 | O22: =O10+O12+O14+O16+O18+O20 -> 9534.825
A23: Porcentagem Acumulada | D23: =D24/$N$26 -> 0.006069933399 | E23: =E24/$N$26 -> 0.02774738887 | F23: =F24/$N$26 -> 0.06274683959 | G23: =G24/$N$26 -> 0.1199295222 | H23: =H24/$N$26 -> 0.1771122048 | I23: 0.8304048565 | J23: 0.8891700953 | K23: 0.9365055421 | L23: 0.9838409889 | M23: 0.9940620339 | N23: =N24/$N$26 -> 0.9970310169 | O23: =O24/$N$26 -> 1
A24: Custo Acumulado | D24: =D22 -> 19493.46 | E24: =D24+E22 -> 89110.14 | F24: =E24+F22 -> 201510.12 | G24: 385151.07 | H24: =G24+H22 -> 568792.02 | I24: =H24+I22 -> 2666827.26 | J24: =I24+J22 -> 2855550.555 | K24: =J24+K22 -> 3007567.32 | L24: =K24+L22 -> 3159584.085 | M24: =L24+M22 -> 3192408.75 | N24: =M24+N22 -> 3201943.575 | O24: =N24+O22 -> 3211478.4
A26: Total Geral | N26: =O24 -> 3211478.4

Sheet PFP2.1_FatorKa
A1: DETALHAMENTO DOS ENCARGOS SOCIAIS: Ka | E1: CODIGO: PFP-2.1
A2: NOME DA CONSULTORA:
A3: =PFF!A3 -> CONTRATAÇÃO DE SERVIÇOS DE CONSULTORIA, POR MEIO DO SISTEMA DE REGISTRO DE PREÇOS – SRP, PARA CERTIFICAÇÃO DE AGROINDÚSTRIAS DE LÁCTEOS E DE SEUS PRODUTOS NO SERVIÇO DE INSPEÇÃO ESTADUAL – SIE, NO ESTADO DO CEARÁ. | C3: =PFF!E3 -> CONTRATANTE: CODEVASF (14ª SR) | E3: =PFF!G3 -> SINAPI/CE: 06/2025 (NÃO DESONERADA) UFIRCE/2025 (R$ 6,02969) PESQUISA DE MERCADO: 02/2025
A4: Cod | B4: DESCRIÇÃO | D4: % | E4: R$
A5: A | B5: ENCARGOS SOCIAIS BÁSICOS | D5: =SUM(D6:D14) -> 0.368 | E5: =SUM(E6:E14) -> 0
A6: A1 | B6: INSS | D6: 0.2 | E6: 0
A7: A2 | B7: SESI | D7: 0.015 | E7: 0
A8: A3 | B8: SENAI | D8: 0.01 | E8: 0
A9: A4 | B9: INCRA | D9: 0.002 | E9: 0
A10: A5 | B10: SEBRAE | D10: 0.006 | E10: 0
A11: A6 | B11: Salário Educação | D11: 0.025 | E11: 0
A12: A7 | B12: Seguro Contra Acidentes de Trabalho | D12: 0.03 | E12: 0
A13: A8 | B13: FGTS | D13: 0.08 | E13: 0
A14: A9 | B14: Seconci | D14: 0 | E14: 0
A15: B | B15: ENCARGOS SOCIAIS QUE RECEBEM INCIDÊNCIA DE "A" | D15: =SUM(D16:D22) -> 0.1946 | E15: =SUM(E16:E22) -> 0
A16: B3 | B16: Auxílio Enfermidade | D16: 0.0065 | E16: 0
A17: B4 | B17: 13º Salário | D17: 0.0833 | E17: 0
A18: B5 | B18: Licença Paternidade | D18: 0.0005 | E18: 0
A19: B6 | B19: Faltas Justificadas | D19: 0.0056 | E19: 0
A20: B8 | B20: Auxílio Acidente de Trabalho | D20: 0.0007 | E20: 0
A21: B9 | B21: Férias Gozadas | D21: 0.0977 | E21: 0
A22: B10 | B22: Salário Maternidade | D22: 0.0003 | E22: 0
A23: C | B23: ENCARGOS SOCIAIS QUE NÃO RECEBEM INCIDÊNCIA DE "A" | D23: =SUM(D24:D28) -> 0.0805 | E23: =SUM(E24:E28) -> 0
A24: C1 | B24: Aviso Prévio Indenizado | D24: 0.0417 | E24: 0
A25: C2 | B25: Aviso Prévio Trabalhado | D25: 0.001 | E25: 0
A26: C3 | B26: Férias Indenizadas | D26: 0.0136 | E26: 0
A27: C4 | B27: Depósito Rescisão Sem Justa Causa | D27: 0.0207 | E27: 0
A28: C5 | B28: Indenização Adicional | D28: 0.0035 | E28: 0
A29: D | B29: REINCIDÊNCIAS | D29: =SUM(D30:D31) -> 0.0753 | E29: =SUM(E30:E31) -> 0
A30: D1 | B30: Reincidência de "A" sobre "B" | D30: 0.0716 | E30: 0
A31: D2 | B31: Reincidência de "A" sobre Aviso Prévio Trabalhado e reincidência do FGTS sobre Aviso Prévio Indenizado | D31: 0.0037 | E31: 0
A32: K1a | B32: ENCARGOS SOCIAIS | D32: =ROUND(D5+D15+D23+D29,4) -> 0.7184 | E32: =E5+E15+E23+E29 -> 0
A33: Ka | B33: TAXA DE RESSARCIMENTO DE DESPESAS E ENCARGOS SOBRE MO1 | D33: =ROUND((1+D32+PFP3_FatorKd!E11)*(1+PFP3_FatorKd!E10)*(1+PFP3_FatorKd!E6),4) -> 2.1689
A34: OBSERVAÇÃO: CELETISTAS E EQUIVALENTES 1 - DISCRIMINAR OS ENCARGOS SOCIAIS COM SEUS RESPECTIVOS PERCENTUAS TOTALIZANDO OS MESMOS. 2 - APLICAR O % TOTAL P/ CALCULAR OS E. SOCIAIS INCIDENTES NA MÃO-DE-OBRA CELETISTAS Ka - Taxa de Ressarcimento de Despesas e Encargos sobre a Mão de Obra CELETISTA (incide apenas no Insumo Codigo MO1) Ka = (1 + K1 + K2) x (1 + K3) x (1 + K4)

Sheet PFP2.2_FatorKb
A1: DETALHAMENTO DOS ENCARGOS SOCIAIS: Kb | E1: CODIGO: PFP-2.2
A2: NOME DA CONSULTORA:
A3: =PFF!A3 -> CONTRATAÇÃO DE SERVIÇOS DE CONSULTORIA, POR MEIO DO SISTEMA DE REGISTRO DE PREÇOS – SRP, PARA CERTIFICAÇÃO DE AGROINDÚSTRIAS DE LÁCTEOS E DE SEUS PRODUTOS NO SERVIÇO DE INSPEÇÃO ESTADUAL – SIE, NO ESTADO DO CEARÁ. | C3: =PFF!E3 -> CONTRATANTE: CODEVASF (14ª SR) | E3: ='PFP2.1_FatorKa'!E3 -> SINAPI/CE: 06/2025 (NÃO DESONERADA) UFIRCE/2025 (R$ 6,02969) PESQUISA DE MERCADO: 02/2025
A4: Cod | B4: DESCRIÇÃO | D4: % | E4: R$
A5: A | B5: ENCARGOS SOCIAIS BÁSICOS | D5: =SUM(D6:D14) -> 0.2 | E5: =SUM(E6:E14) -> 583881.12
A6: A1 | B6: INSS | D6: 0.2 | E6: =ROUND(D6*SUM(PFP!$L$5:$L$9),2) -> 583881.12
A7: A2 | B7: SESI | D7: 0 | E7: =ROUND(D7*SUM(PFP!$L$5:$L$9),2) -> 0
A8: A3 | B8: SENAI | D8: 0 | E8: =ROUND(D8*SUM(PFP!$L$5:$L$9),2) -> 0
A9: A4 | B9: INCRA | D9: 0 | E9: =ROUND(D9*SUM(PFP!$L$5:$L$9),2) -> 0
A10: A5 | B10: SEBRAE | D10: 0 | E10: =ROUND(D10*SUM(PFP!$L$5:$L$9),2) -> 0
A11: A6 | B11: Salário Educação | D11: 0 | E11: =ROUND(D11*SUM(PFP!$L$5:$L$9),2) -> 0
A12: A7 | B12: Seguro Contra Acidentes de Trabalho | D12: 0 | E12: =ROUND(D12*SUM(PFP!$L$5:$L$9),2) -> 0
A13: A8 | B13: FGTS | D13: 0 | E13: =ROUND(D13*SUM(PFP!$L$5:$L$9),2) -> 0
A14: A9 | B14: SECONCI | D14: 0 | E14: =ROUND(D14*SUM(PFP!$L$5:$L$9),2) -> 0
A15: B | B15: ENCARGOS SOCIAIS QUE RECEBEM INCIDÊNCIA DE "A" | D15: =SUM(D16:D22) -> 0 | E15: =SUM(E16:E22) -> 0
A16: B3 | B16: Auxílio Enfermidade | D16: 0 | E16: =ROUND(D16*SUM(PFP!$L$5:$L$9),2) -> 0
A17: B4 | B17: 13º Salário | D17: 0 | E17: =ROUND(D17*SUM(PFP!$L$5:$L$9),2) -> 0
A18: B5 | B18: Licença Paternidade | D18: 0 | E18: =ROUND(D18*SUM(PFP!$L$5:$L$9),2) -> 0
A19: B6 | B19: Faltas Justificadas | D19: 0 | E19: =ROUND(D19*SUM(PFP!$L$5:$L$9),2) -> 0
A20: B8 | B20: Auxílio Acidente de Trabalho | D20: 0 | E20: =ROUND(D20*SUM(PFP!$L$5:$L$9),2) -> 0
A21: B9 | B21: Férias Gozadas | D21: 0 | E21: =ROUND(D21*SUM(PFP!$L$5:$L$9),2) -> 0
A22: B10 | B22: Salário Maternidade | D22: 0 | E22: =ROUND(D22*SUM(PFP!$L$5:$L$9),2) -> 0
A23: C | B23: ENCARGOS SOCIAIS QUE NÃO RECEBEM INCIDÊNCIA DE "A" | D23: =SUM(D24:D28) -> 0 | E23: =SUM(E24:E28) -> 0
A24: C1 | B24: Aviso Prévio Indenizado | D24: 0 | E24: =ROUND(D24*SUM(PFP!$L$5:$L$9),2) -> 0
A25: C2 | B25: Aviso Prévio Trabalhado | D25: 0 | E25: =ROUND(D25*SUM(PFP!$L$5:$L$9),2) -> 0
A26: C3 | B26: Férias Indenizadas | D26: 0 | E26: =ROUND(D26*SUM(PFP!$L$5:$L$9),2) -> 0
A27: C4 | B27: Depósito Rescisão Sem Justa Causa | D27: 0 | E27: =ROUND(D27*SUM(PFP!$L$5:$L$9),2) -> 0
A28: C5 | B28: Indenização Adicional | D28: 0 | E28: =ROUND(D28*SUM(PFP!$L$5:$L$9),2) -> 0
A29: D | B29: REINCIDÊNCIAS | D29: =SUM(D30:D31) -> 0 | E29: =SUM(E30:E31) -> 0
A30: D1 | B30: Reincidência de "A" sobre "B" | D30: 0 | E30: =ROUND(D30*SUM(PFP!$L$5:$L$9),2) -> 0
A31: D2 | B31: Reincidência de "A" sobre Aviso Prévio Trabalhado e reincidência do FGTS sobre Aviso Prévio Indenizado | D31: 0 | E31: =ROUND(D31*SUM(PFP!$L$5:$L$9),2) -> 0
A32: K1b | B32: ENCARGOS SOCIAIS | D32: =ROUND(D5+D15+D23+D29,4) -> 0.2 | E32: =E5+E15+E23+E29 -> 583881.12
A33: Kb | B33: TAXA DE RESSARCIMENTO DE DESPESAS E ENCARGOS SOBRE MO2 | D33: =ROUND((1+D32+PFP3_FatorKd!E11)*(1+PFP3_FatorKd!E10)*(1+PFP3_FatorKd!E6),4) -> 1.5402
A34: OBSERVAÇÃO: AUTÔNOMOS E EQUIVALENTES 1 - DISCRIMINAR OS ENCARGOS SOCIAIS COM SEUS RESPECTIVOS PERCENTUAS TOTALIZANDO OS MESMOS. 2 - APLICAR O % TOTAL P/ CALCULAR OS E. SOCIAIS INCIDENTES NA MÃO-DE-OBRA AUTONÔMOS Kb - Taxa de Ressarcimento de Despesas e Encargos sobre a Mão de Obra AUTONÔMA (incide apenas no Insumo Codigo MO2) Kb = (1 + K1 + K2) x (1 + K3) x (1 + K4)

Sheet PFP2.3_FatorKc
A1: DETALHAMENTO DOS ENCARGOS SOCIAIS: Kc | E1: CODIGO: PFP-2.3
A2: NOME DA CONSULTORA:
A3: =PFF!A3 -> CONTRATAÇÃO DE SERVIÇOS DE CONSULTORIA, POR MEIO DO SISTEMA DE REGISTRO DE PREÇOS – SRP, PARA CERTIFICAÇÃO DE AGROINDÚSTRIAS DE LÁCTEOS E DE SEUS PRODUTOS NO SERVIÇO DE INSPEÇÃO ESTADUAL – SIE, NO ESTADO DO CEARÁ. | C3: =PFF!E3 -> CONTRATANTE: CODEVASF (14ª SR) | E3: ='PFP2.1_FatorKa'!E3 -> SINAPI/CE: 06/2025 (NÃO DESONERADA) UFIRCE/2025 (R$ 6,02969) PESQUISA DE MERCADO: 02/2025
A4: Cod | B4: DESCRIÇÃO | D4: % | E4: R$
A5: A | B5: ENCARGOS SOCIAIS BÁSICOS | D5: =SUM(D6:D14) -> 0 | E5: 0
A6: A1 | B6: INSS | D6: 0 | E6: 0
A7: A2 | B7: SESI | D7: 0 | E7: 0
A8: A3 | B8: SENAI | D8: 0 | E8: 0
A9: A4 | B9: INCRA | D9: 0 | E9: 0
A10: A5 | B10: SEBRAE | D10: 0 | E10: 0
A11: A6 | B11: Salário Educação | D11: 0 | E11: 0
A12: A7 | B12: Seguro Contra Acidentes de Trabalho | D12: 0 | E12: 0
A13: A8 | B13: FGTS | D13: 0 | E13: 0
A14: A9 | B14: SECONCI | D14: 0 | E14: 0
A15: B | B15: ENCARGOS SOCIAIS QUE RECEBEM INCIDÊNCIA DE "A" | D15: =SUM(D16:D22) -> 0 | E15: 0
A16: B3 | B16: Auxílio Enfermidade | D16: 0 | E16: 0
A17: B4 | B17: 13º Salário | D17: 0 | E17: 0
A18: B5 | B18: Licença Paternidade | D18: 0 | E18: 0
A19: B6 | B19: Faltas Justificadas | D19: 0 | E19: 0
A20: B8 | B20: Auxílio Acidente de Trabalho | D20: 0 | E20: 0
A21: B9 | B21: Férias Gozadas | D21: 0 | E21: 0
A22: B10 | B22: Salário Maternidade | D22: 0 | E22: 0
A23: C | B23: ENCARGOS SOCIAIS QUE NÃO RECEBEM INCIDÊNCIA DE "A" | D23: =SUM(D24:D28) -> 0 | E23: 0
A24: C1 | B24: Aviso Prévio Indenizado | D24: 0 | E24: 0
A25: C2 | B25: Aviso Prévio Trabalhado | D25: 0 | E25: 0
A26: C3 | B26: Férias Indenizadas | D26: 0 | E26: 0
A27: C4 | B27: Depósito Rescisão Sem Justa Causa | D27: 0 | E27: 0
A28: C5 | B28: Indenização Adicional | D28: 0 | E28: 0
A29: D | B29: REINCIDÊNCIAS | D29: =SUM(D30:D31) -> 0 | E29: 0
A30: D1 | B30: Reincidência de "A" sobre "B" | D30: 0 | E30: 0
A31: D2 | B31: Reincidência de "A" sobre Aviso Prévio Trabalhado e reincidência do FGTS sobre Aviso Prévio Indenizado | D31: 0 | E31: 0
A32: K1c | B32: ENCARGOS SOCIAIS | D32: =ROUND(D5+D15+D23+D29,4) -> 0 | E32: 0
A33: Kc | B33: TAXA DE RESSARCIMENTO DE DESPESAS E ENCARGOS SOBRE MO3 | D33: =ROUND((1+D32+PFP3_FatorKd!E11)*(1+PFP3_FatorKd!E10)*(1+PFP3_FatorKd!E6),4) -> 1.2976
A34: OBSERVAÇÃO: SOCIETÁRIOS E EQUIVALENTES 1 - DISCRIMINAR OS ENCARGOS SOCIAIS COM SEUS RESPECTIVOS PERCENTUAS TOTALIZANDO OS MESMOS. 2 - APLICAR O % TOTAL P/ CALCULAR OS E. SOCIAIS INCIDENTES NA MÃO-DE-OBRA DE SOCIETÁRIOS Kc - Taxa de Ressarcimento de Despesas e Encargos sobre a Mão de Obra SOCIETÁRIA (incide apenas no Insumo Codigo MO3) Kc = (1 + K1 + K2) x (1 + K3) x (1 + K4)

Sheet PFP3_FatorKd
A1: DESPESAS FISCAIS E CUSTOS DIVERSOS: Kd | F1: CODIGO:
F2: PFP-3
A3: NOME DA CONSULTORA:
A4: =PFF!A3 -> CONTRATAÇÃO DE SERVIÇOS DE CONSULTORIA, POR MEIO DO SISTEMA DE REGISTRO DE PREÇOS – SRP, PARA CERTIFICAÇÃO DE AGROINDÚSTRIAS DE LÁCTEOS E DE SEUS PRODUTOS NO SERVIÇO DE INSPEÇÃO ESTADUAL – SIE, NO ESTADO DO CEARÁ. | C4: =PFF!E3 -> CONTRATANTE: CODEVASF (14ª SR) | F4: =PFF!G3 -> SINAPI/CE: 06/2025 (NÃO DESONERADA) UFIRCE/2025 (R$ 6,02969) PESQUISA DE MERCADO: 02/2025
A5: Cod | B5: DESCRIÇÃO1 | D5: % preço2 | E5: % custo4 | F5: R$
A6: K4 | B6: TRIBUTOS | D6: =SUM(D7:D9) -> 0.1425 | E6: =ROUND(E7+E8+E9,4) -> 0.1661 | F6: =E6*SUM(SUMIF(PFP!$B$5:$B$18,"MO1",PFP!$K$5:$K$18)*(1+'PFP2.1_FatorKa'!$E$33)+SUMIF(PFP!$B$5:$B$18,"MO2",PFP!$K$5:$K$18)*(1+'PFP2.2_FatorKb'!$E$33)+SUMIF(PFP!$B$5:$B$18,"<>MO*",PFP!$K$5:$K$18)+$F$11+$F$10) -> 391954.6746
A7: K4.1 | B7: ISS | D7: 0.05 | E7: =ROUND((1/(1-$D$6))*D7,4) -> 0.0583 | F7: =E7*SUM(SUMIF(PFP!$B$5:$B$18,"MO1",PFP!$K$5:$K$18)*(1+'PFP2.1_FatorKa'!$E$33)+SUMIF(PFP!$B$5:$B$18,"MO2",PFP!$K$5:$K$18)*(1+'PFP2.2_FatorKb'!$E$33)+SUMIF(PFP!$B$5:$B$18,"<>MO*",PFP!$K$5:$K$18)+$F$11+$F$10) -> 137573.4951
A8: K4.2 | B8: PIS3 - aliquota efetiva aplicavel percentual-desconto | D8: 0.0165 | E8: =ROUND((1/(1-$D$6))*D8,4) -> 0.0192 | F8: =E8*SUM(SUMIF(PFP!$B$5:$B$18,"MO1",PFP!$K$5:$K$18)*(1+'PFP2.1_FatorKa'!$E$33)+SUMIF(PFP!$B$5:$B$18,"MO2",PFP!$K$5:$K$18)*(1+'PFP2.2_FatorKb'!$E$33)+SUMIF(PFP!$B$5:$B$18,"<>MO*",PFP!$K$5:$K$18)+$F$11+$F$10) -> 45307.22307
A9: K4.3 | B9: COFINS3 - aliquota efetiva aplicavel percentual-desconto | D9: 0.076 | E9: 0.0886 | F9: =E9*SUM(SUMIF(PFP!$B$5:$B$18,"MO1",PFP!$K$5:$K$18)*(1+'PFP2.1_FatorKa'!$E$33)+SUMIF(PFP!$B$5:$B$18,"MO2",PFP!$K$5:$K$18)*(1+'PFP2.2_FatorKb'!$E$33)+SUMIF(PFP!$B$5:$B$18,"<>MO*",PFP!$K$5:$K$18)+$F$11+$F$10) -> 209073.9565
A10: K3 | B10: REMUNERAÇÃO DA EMPRESA (LUCRO) | E10: 0.04 | F10: =E10*SUM(SUMIF(PFP!$B$5:$B$18,"MO1",PFP!$K$5:$K$18)*(1+'PFP2.1_FatorKa'!$E$33)+SUMIF(PFP!$B$5:$B$18,"MO2",PFP!$K$5:$K$18)*(1+'PFP2.2_FatorKb'!$E$33)+SUMIF(PFP!$B$5:$B$18,"<>MO*",PFP!$K$5:$K$18)+$F$11) -> 90759.6616
A11: K2 | B11: CUSTOS DA ADMINISTRAÇÃO CENTRAL | E11: =ROUND(E12+E13+E14,4) -> 0.07 | F11: =ROUND(E11*SUMIF(PFP!$B$5:$B$18,"MO*",PFP!$K$5:$K$18),2) -> 132682.54
A12: K2.1 | B12: Custos da administração central da empresa (diretoria, pessoal técnico de apoio e pessoal administrativo não diretamente vinculado à prestação dos serviços) | E12: 0.04 | F12: =ROUND(E12*SUMIF(PFP!$B$5:$B$18,"MO*",PFP!$K$5:$K$18),2) -> 75818.59
A13: K2.2 | B13: Outras despesas que afetam o custo de produção como treinamento, biblioteca, programa de qualidade, programa de benefícios, auditoria interna e externa | E13: 0.02 | F13: =ROUND(E13*SUMIF(PFP!$B$5:$B$18,"MO*",PFP!$K$5:$K$18),2) -> 37909.3
A14: K2.3 | B14: Despesas fixas e variaveis com patrimônio, aluguéis, comunicação, manutenção e transporte não diretamente relacionados com o custo direto dos serviços | E14: 0.01 | F14: =ROUND(E14*SUMIF(PFP!$B$5:$B$18,"MO*",PFP!$K$5:$K$18),2) -> 18954.65
A15: Kd | B15: TAXA RESSARCIMENTO DE DESPESAS SOBRE CUSTOS DIVERSOS | E15: =ROUND((1+E10)*(1+E6),4) -> 1.2127 | G15: 1.21 | H15: 1.23
A16: NOME DO INFORMANTE: | E16: QUALIFICAÇÃO:
A17: ASSINATURA: | E17: DATA:
A18: Observação: 1 - RELACIONAR OS CUSTOS DE ADMINISTRAÇÃO COM RESPECTIVOS PERCENTUAIS INCIDENTES NA MÃO -DE-OBRA 1 - DISCRIMINAR OS TRIBUTOS QUE INCIDEM SOBRE OS CUSTOS DA PRESTAÇÃO DOS SERVIÇOS 2 - K4 = INDICAR % DE CADA TRIBUTO E A SOMA DOS MESMOS (ex: ISS 5% + PIS 1,65% + COFINS 7,60% = 14,25%) 3 - PIS e COFINS, Regime de Incidencia Acumulativa (0,65% e 3,00% - sem percentual de desconto) ou em Regime de Incidencia Não Acumulativa (1,65% e 7,60% - aplicável percentual de desconto) de acordo com a forma de apuração do lucro no IRPJ. APRESENTAR COMPROVANTES de aproveitamento de créditos tributários dos últimos 12 meses em caso de aplicação de "percentual de desconto". 4 - AS DESPESAS FISCAIS (K4) INCIDEM SOBRE O TOTAL DA FATURA E NÃO SOBRE OS CUSTOS INCORRIDOS, DEVENDO SER CALCULADO O K4' APLICANDO-SE A SEGUINTE FÓRMULA: K4' = { [ 1 / ( 1 - K4) ] - 1 } x 100 K4' = { [ 1 / ( 1 - 0,124 ) ] - 1 } x 100 Kc - Taxa de Ressarcimento de Despesas sobre Custos Diversos (incide sobre os Insumos Codigo DP e EM) Kc = (1 + K3) x (1 + K4) K2 - Incide sobre o Custo Total (CT) da Mão de Obra (MO* = MO1 + MO2) K3 - Incide sobre o Custo Total (CT) Mão de Obra com encargos (MO1 x Ka ou MO2 x Kb), demais Custos (DP e EM), e Custos da Administração Central (K2) K4 - Incide sobre o Custo Total (CT) Mão de Obra com encargos (MO1 x Ka ou MO2 x Kb), demais Custos (DP e EM), e Custos da Administração Central (K2) e Lucro (K3)

Sheet CRO-1
A1: INSUMOS POR ETAPA/PRODUTO | N1: CÓDIGO:
N2: CRO-1
A3: NOME DA CONSULTORA:
A5: =PFF!A3 -> CONTRATAÇÃO DE SERVIÇOS DE CONSULTORIA, POR MEIO DO SISTEMA DE REGISTRO DE PREÇOS – SRP, PARA CERTIFICAÇÃO DE AGROINDÚSTRIAS DE LÁCTEOS E DE SEUS PRODUTOS NO SERVIÇO DE INSPEÇÃO ESTADUAL – SIE, NO ESTADO DO CEARÁ. | G5: =PFF!E3 -> CONTRATANTE: CODEVASF (14ª SR) | L5: =PFF!G3 -> SINAPI/CE: 06/2025 (NÃO DESONERADA) UFIRCE/2025 (R$ 6,02969) PESQUISA DE MERCADO: 02/2025
A9: Cod. | B9: Código | C9: Categoria / Insumo | D9: Uni | E9: Qde | F9: CUD | G9: PU | H9: FatorK | I9: E1. RATI | J9: E2. RRE | K9: E3. RRP | L9: E4. RCAP | M9: E5. RVF | N9: E6. RAPP
H10: Meses | I10: 9 | J10: 8 | K10: 5 | L10: 8 | M10: 9 | N10: 1
A11: =PFP!C5 -> P1 | B11: =PFP!D5 -> T1 | C11: =PFP!E5 -> Médico Veterinário | D11: =PFP!F5 -> h | E11: =I11*PFF!$E$6+J11*PFF!$E$8+K11*PFF!$E$10+L11*PFF!$E$12+M11*PFF!$E$14+N11*PFF!$E$16 -> 4320 | F11: 130.3 | G11: =ROUND(F11*H11,2) -> 200.69 | H11: ='PFP2.2_FatorKb'!$D$33 -> 1.5402 | I11: 24 | J11: 32 | K11: 16 | L11: 0 | M11: 0 | N11: 40
A12: =PFP!C6 -> P1 | B12: =PFP!D6 -> 90777 | C12: =PFP!E6 -> Engenheiro | D12: =PFP!F6 -> h | E12: =I12*PFF!$E$6+J12*PFF!$E$8+K12*PFF!$E$10+L12*PFF!$E$12+M12*PFF!$E$14+N12*PFF!$E$16 -> 6720 | F12: 130.3 | G12: =ROUND(F12*H12,2) -> 200.69 | H12: ='PFP2.2_FatorKb'!$D$33 -> 1.5402 | I12: 0 | J12: 24 | K12: 0 | L12: 0 | M12: 0 | N12: 200
A13: =PFP!C7 -> P1 | B13: =PFP!D7 -> 90768 | C13: =PFP!E7 -> Arquiteto | D13: =PFP!F7 -> h | E13: =I13*PFF!$E$6+J13*PFF!$E$8+K13*PFF!$E$10+L13*PFF!$E$12+M13*PFF!$E$14+N13*PFF!$E$16 -> 1680 | F13: 127.12 | G13: 195.79 | H13: ='PFP2.2_FatorKb'!$D$33 -> 1.5402 | I13: 0 | J13: 16 | K13: 0 | L13: 0 | M13: 0 | N13: 40
A14: =PFP!C8 -> P1 | B14: =PFP!D8 -> 90775 | C14: =PFP!E8 -> Desenhista | D14: =PFP!F8 -> h | E14: =I14*PFF!$E$6+J14*PFF!$E$8+K14*PFF!$E$10+L14*PFF!$E$12+M14*PFF!$E$14+N14*PFF!$E$16 -> 4560 | F14: 29.79 | G14: 45.88 | H14: ='PFP2.2_FatorKb'!$D$33 -> 1.5402 | I14: 0 | J14: 32 | K14: 0 | L14: 0 | M14: 0 | N14: 120
A15: =PFP!C9 -> P1 | B15: =PFP!D9 -> T2 | C15: =PFP!E9 -> Instrutor | D15: =PFP!F9 -> h | E15: =I15*PFF!$E$6+J15*PFF!$E$8+K15*PFF!$E$10+L15*PFF!$E$12+M15*PFF!$E$14+N15*PFF!$E$16 -> 480 | F15: 224.06 | G15: 345.1 | H15: ='PFP2.2_FatorKb'!$D$33 -> 1.5402 | I15: 0 | J15: 0 | K15: 0 | L15: 16 | M15: 0 | N15: 0
A16: =PFP!C10 -> V1 | B16: =PFP!D10 -> CPUH-1 | C16: =PFP!E10 -> Diarias - Interior | D16: =PFP!F10 -> dia | E16: =I16*PFF!$E$6+J16*PFF!$E$8+K16*PFF!$E$10+L16*PFF!$E$12+M16*PFF!$E$14+N16*PFF!$E$16 -> 270 | F16: 353.39 | G16: 428.56 | H16: =PFP3_FatorKd!$E$15 -> 1.2127 | I16: 3 | J16: 0 | K16: 0 | L16: 4 | M16: 2 | N16: 0
A17: =PFP!C11 -> V2 | B17: =PFP!D11 -> CLP-1 | C17: =PFP!E11 -> Veículo tipo Hatch 100cv ou mais (Taxa selic 15%) | D17: =PFP!F11 -> dia | E17: =I17*PFF!$E$6+J17*PFF!$E$8+K17*PFF!$E$10+L17*PFF!$E$12+M17*PFF!$E$14+N17*PFF!$E$16 -> 270 | F17: 108.73 | G17: 131.86 | H17: =PFP3_FatorKd!$E$15 -> 1.2127 | I17: 3 | J17: 0 | K17: 0 | L17: 4 | M17: 2 | N17: 0
A18: =PFP!C12 -> TX | B18: =PFP!D12 -> T3 | C18: =PFP!E12 -> Anotação de Responsabilidade Técnica - ART Engenheiro/Arquiteto 2025 | D18: =PFP!F12 -> un | E18: =I18*PFF!$E$6+J18*PFF!$E$8+K18*PFF!$E$10+L18*PFF!$E$12+M18*PFF!$E$14+N18*PFF!$E$16 -> 240 | F18: 103.03 | G18: 124.94 | H18: =PFP3_FatorKd!$E$15 -> 1.2127 | I18: 0 | J18: 2 | K18: 0 | L18: 0 | M18: 0 | N18: 6
A19: =PFP!C13 -> TX | B19: =PFP!D13 -> T4 | C19: =PFP!E13 -> Anotação de Responsabilidade Técnica - ART Médico Veterinário | D19: =PFP!F13 -> un | E19: =I19*PFF!$E$6+J19*PFF!$E$8+K19*PFF!$E$10+L19*PFF!$E$12+M19*PFF!$E$14+N19*PFF!$E$16 -> 60 | F19: 163 | G19: 197.67 | H19: =PFP3_FatorKd!$E$15 -> 1.2127 | I19: 0 | J19: 1 | K19: 0 | L19: 0 | M19: 0 | N19: 1
A20: =PFP!C14 -> TX | B20: =PFP!D14 -> T5 | C20: =PFP!E14 -> Pagamento da Taxa - Análise da documentação | D20: =PFP!F14 -> un | E20: =I20*PFF!$E$6+J20*PFF!$E$8+K20*PFF!$E$10+L20*PFF!$E$12+M20*PFF!$E$14+N20*PFF!$E$16 -> 30 | F20: 346.95 | G20: 420.75 | H20: =PFP3_FatorKd!$E$15 -> 1.2127 | I20: 0 | J20: 1 | K20: 0 | L20: 0 | M20: 0 | N20: 0
A21: =PFP!C15 -> TX | B21: =PFP!D15 -> T6 | C21: =PFP!E15 -> Pagamento da Taxa - Registro do Produto | D21: =PFP!F15 -> un | E21: =I21*PFF!$E$6+J21*PFF!$E$8+K21*PFF!$E$10+L21*PFF!$E$12+M21*PFF!$E$14+N21*PFF!$E$16 -> 90 | F21: 60.3 | G21: 73.13 | H21: =PFP3_FatorKd!$E$15 -> 1.2127 | I21: 0 | J21: 0 | K21: 1 | L21: 0 | M21: 0 | N21: 0
A22: =PFP!C16 -> TX | B22: =PFP!D16 -> T7 | C22: =PFP!E16 -> Pagamento da Taxa - Vistoria Final | D22: =PFP!F16 -> un | E22: =I22*PFF!$E$6+J22*PFF!$E$8+K22*PFF!$E$10+L22*PFF!$E$12+M22*PFF!$E$14+N22*PFF!$E$16 -> 30 | F22: 602.97 | G22: 731.22 | H22: =PFP3_FatorKd!$E$15 -> 1.2127 | I22: 0 | J22: 0 | K22: 0 | L22: 0 | M22: 1 | N22: 0
A23: =PFP!C17 -> COT | B23: =PFP!D17 -> COT-01 | C23: =PFP!E17 -> Laudo de análise fisico-química e microbiológica da água | D23: =PFP!F17 -> un | E23: =I23*PFF!$E$6+J23*PFF!$E$8+K23*PFF!$E$10+L23*PFF!$E$12+M23*PFF!$E$14+N23*PFF!$E$16 -> 30 | F23: 220 | G23: 266.79 | H23: =PFP3_FatorKd!$E$15 -> 1.2127 | I23: 0 | J23: 0 | K23: 0 | L23: 0 | M23: 1 | N23: 0
A24: =PFP!C18 -> ROT | B24: =PFP!D18 -> ROT-01 | C24: =PFP!E18 -> Desenvolvimento da rotulagem de produtos | D24: =PFP!F18 -> un | E24: =I24*PFF!$E$6+J24*PFF!$E$8+K24*PFF!$E$10+L24*PFF!$E$12+M24*PFF!$E$14+N24*PFF!$E$16 -> 90 | F24: 456 | G24: 552.99 | H24: =PFP3_FatorKd!$E$15 -> 1.2127 | I24: 0 | J24: 0 | K24: 1 | L24: 0 | M24: 0 | N24: 0
A25: TOTAL | C25: VALOR POR PRODUTO | I25: =ROUND(SUMPRODUCT($G$11:$G$24,I11:I24),2) -> 6497.82 | J25: 16707.74 | K25: 3837.16 | L25: 7763.28 | M25: 2118.85 | N25: 62450.11
C26: VALOR TOTAL | E26: =SUM(I26:N26) -> 3211478.4 | I26: =I25*PFF!E6 -> 194934.6 | J26: =J25*PFF!E8 -> 501232.2 | K26: =K25*PFF!E10 -> 345344.4 | L26: =L25*PFF!E12 -> 232898.4 | M26: =M25*PFF!E14 -> 63565.5 | N26: =N25*PFF!E16 -> 1873503.3
C27: % DO VALOR TOTAL | D27: % | E27: =SUM(I27:N27) -> 1 | I27: =I26/$E$26 -> 0.06069933399 | J27: =J26/$E$26 -> 0.1560752207 | K27: 0.1075343991 | L27: 0.07252061854 | M27: 0.01979322047 | N27: 0.5833772072

Sheet COTAÇÕES
B1: MINISTÉRIO DA INTEGRAÇÃO E DO DESENVOLVIMENTO REGIONAL - MIDR
B2: COMPANHIA DE DESENVOLVIMENTO DOS VALES DO SÃO FRANCISCO E DO PARNAÍBA
B3: 14ª SUPERINTÊNCIA REGIONAL
A5: =PFF!A3 -> CONTRATAÇÃO DE SERVIÇOS DE CONSULTORIA, POR MEIO DO SISTEMA DE REGISTRO DE PREÇOS – SRP, PARA CERTIFICAÇÃO DE AGROINDÚSTRIAS DE LÁCTEOS E DE SEUS PRODUTOS NO SERVIÇO DE INSPEÇÃO ESTADUAL – SIE, NO ESTADO DO CEARÁ.
A7: MAPA DE COTAÇÕES
A9: COT-01 | B9: LAUDO DE ANÁLISE DA ÁGUA
A10: EMPRESA | C10: DATA DA COTAÇÃO | D10: VALOR (R$)
A11: LIMPH2O SERVIÇOS | C11: 2025-02-11 | D11: 250
A12: LM ENSAIOS TÉCNICOS | C12: 2025-02-11 | D12: 150
A13: H2OANALYSIS | C13: 2025-02-18 | D13: 260
C14: MÉDIA | D14: =ROUND(AVERAGE(D11:D13),2) -> 220

Sheet CPUH-1
A1: CPU HOSPEDAGEM | E1: CODIGO:
E2: CPUH-1
A3: NOME DA CONSULTORA:
A5: =PFF!A3 -> CONTRATAÇÃO DE SERVIÇOS DE CONSULTORIA, POR MEIO DO SISTEMA DE REGISTRO DE PREÇOS – SRP, PARA CERTIFICAÇÃO DE AGROINDÚSTRIAS DE LÁCTEOS E DE SEUS PRODUTOS NO SERVIÇO DE INSPEÇÃO ESTADUAL – SIE, NO ESTADO DO CEARÁ. | D5: =PFF!E3 -> CONTRATANTE: CODEVASF (14ª SR) | E5: =PFF!G3 -> SINAPI/CE: 06/2025 (NÃO DESONERADA) UFIRCE/2025 (R$ 6,02969) PESQUISA DE MERCADO: 02/2025
B7: Engenharia Consultiva da Codevasf | C7: Capital | D7: Interior
B8: CPU - HOSPEDAGEM EQUIPE DE CAMPO (4 PESSOAS/MÊS) | E8: Código/Referencia
B9: Custo diário por pessoa: | C9: 345.08 | D9: 252.8 | E9: Tabela Diária Codevasf
B10: Alimentação: | C10: 100.59 | D10: 100.59 | E10: Tabela Diária Codevasf
B12: Diária Total (alimentação + hospedagem): | C12: =SUM(C9:C11) -> 445.67 | D12: =SUM(D9:D11) -> 353.39

Sheet CLP-1
A2: Composição de Preços de Locação de Veículos
A3: Data de atualização: | D3: 2025-07-14 | F3: CV | G3: Média | H3: Mediana | L3: CV | M3: Média | N3: Mediana | X3: CV | Y3: Média | Z3: Mediana
A4: CODEVASF | F4: =_xlfn.STDEV.S(F7:I7)/AVERAGE(F7:I7) -> 0.1466333998 | G4: =AVERAGE(F7:I7) -> 75224.5 | H4: =MEDIAN(F7:I7) -> 74407.5 | L4: =_xlfn.STDEV.S(M6:U6)/AVERAGE(M6:U6) -> 0.1572234728 | M4: =AVERAGE(M6:U6) -> 26.76888889 | N4: =MEDIAN(M6:U6) -> 27.12 | X4: =_xlfn.STDEV.S(Y6:AG6)/AVERAGE(Y6:AG6) -> 0.1621894985 | Y4: =AVERAGE(Y6:AG6) -> 329.1444444 | Z4: =MEDIAN(Y6:AG6) -> 334.75
A5: OBS: Preço sem BDI e sem motorista BDI= | F5: Preço FIPE | K5: PRODUTO | L5: MENOR | M5: COT. 1 | N5: COT. 2 | O5: COT. 3 | P5: COT. 4 | Q5: COT. 5 | R5: COT. 6 | S5: COT. 7 | T5: COT. 8 | U5: COT. 9 | W5: PRODUTO | X5: MENOR | Y5: COT. 1 | Z5: COT. 2 | AA5: COT. 3 | AB5: COT. 4 | AC5: COT. 5 | AD5: COT. 6 | AE5: COT. 7 | AF5: COT. 8 | AG5: COT. 9
A6: Veículo Leve 1.0 T. Flex 12V 5p | F6: Renault Kwid Zen 1.0 | G6: Hyndai HB20 Sense 1.0 | H6: ONIX HATCH LT 1.0 12V Flex 5p Mec. | I6: MOBI TREKKING 1.0 Flex 5p. | K6: LUBRIFICANTE 15W40 | L6: =SMALL(M4:N4,1) -> 26.76888889 | M6: 27.12 | N6: 19.01 | O6: 28.9 | P6: 23.9 | Q6: 28.76 | R6: 33.9 | S6: 29.44 | T6: 24.9 | U6: 24.99 | W6: Pneu 185/65 R14 | X6: =SMALL(Y4:Z4,1) -> 329.1444444 | Y6: 289.9 | Z6: =1255.8/4 -> 313.95 | AA6: 289 | AB6: =1339/4 -> 334.75 | AC6: =1519.6/4 -> 379.9 | AD6: 231 | AE6: 364.9 | AF6: =718/2 -> 359 | AG6: =799.8/2 -> 399.9
C7: Custo Mensal (R$): | D7: =D48 -> 3261.789577 | F7: 63868 | G7: 80150 | H7: 88215 | I7: 68665
C8: Custo Diário (R$): | D8: =D7/30 -> 108.7263192
C9: Custo Horário (R$): | D9: =D7/176 -> 18.53289532
A10: A | C10: Depreciação mensal do equipamento
A11: A1 | C11: Preço de Aquisição | D11: =SMALL(G4:H4,1) -> 74407.5
A12: A2 | C12: Tempo previsto de vida útil (meses) | D12: 36
A13: A3 | C13: Previsão de recup. Na venda do bem usado | D13: 0.7
A14: A4 | C14: Custo mensal [A1-(A3xA1)]/A2 | D14: =(D11-(D13*D11))/D12 -> 620.0625
A15: B | C15: Juros pelo Capital empregado
A16: B1 | C16: Taxa mensal de Juros * | D16: =POWER(1+D53,1/12)-1 -> 0.01171491692
A17: B2 | C17: Juros s/depreciação/aluguel (B1xA4) | D17: =D16*D14 -> 7.263980673
A18: C | C18: Conservação e manutenção ** | D18: 0.75
A19: C1 | C19: Taxa de gastos s/a deprec. Inc. seguros (%) | D19: =D18 -> 0.75
A20: C2 | C20: Incidência mensal (C1xA4) | D20: =D19*D14 -> 465.046875
A21: D | C21: Combustível
A22: D1 | C22: Média mensal de quilômetro por veículo | D22: 4500 | F22: =3*300*2*30/12 -> 4500
A23: D2 | C23: Preço do litro de combustível | D23: 6.14
A24: D3 | C24: Quilômetros rodados com um litro combustivel | D24: =(12.8+13.3+15.3+15)/4 -> 14.1
A25: D4 | C25: Combustivel (D1/D3)*D2 | D25: =(D22/D24)*D23 -> 1959.574468
A26: E | C26: Lubrificantes
A27: E1 | C27: Quilometragem do Contrato (D1*12) | D27: =D22*36 -> 162000
A28: E2 | C28: Franquia por troca de óleo (km) | D28: 10000
A29: E3 | C29: Preço do litro de óleo | D29: =L6 -> 26.76888889
A30: E4 | C30: Quantidade de litros de óleo por troca | D30: 4
A31: E5 | C31: Quantidade de dias do Contrato | D31: =365*3 -> 1095
A32: E6 | C32: Lubrificantes E = (E1*E3*E4*30)/E2*E5 | D32: =(D27*D29*D30*30)/(D28*D31) -> 47.52394521
A33: F | C33: Pneus
A34: F1 | C34: Quilometragem do Contrato | D34: =D27 -> 162000
A35: F2 | C35: Vida do Pneu em quilômetros | D35: 45000
A36: F3 | C36: Quantidade de pneus | D36: 5
A37: F4 | C37: Preço do Pneu | D37: =X6 -> 329.1444444
A38: F5 | C38: Quantidade de dias do contrato | D38: =D31 -> 1095
A39: F6 | C39: Pneus = (F1*F3*F4*30)/(F2*F5) | D39: =(D34*D36*D37*30)/(D35*D38) -> 162.3178082
A40: G | C40: Motorista
A41: G1 | C41: Salário com encargos sociais | D41: 0
A42: H | C42: Custo Mensal | K42: https://www.google.com/search?q=lubrificante+15w40+1l&sa=X&biw=1600&bih=757&tbm=shop&sxsrf=AJOqlzUezMM_9i0M4NKjKqAMycLuOygp_g%3A1677158931166&ei=E2r3Y5e2CcH31sQPsK67CA&ved=0ahUKEwjXi8vy36v9AhXBu5UCHTDXDgEQ4dUDCAg&uact=5&oq=lubrificante+15w40+1l&gs_lcp=Cgtwcm9kdWN0cy1jYxADMgsIABAWEB4Q8QQQGDoICAAQgAQQsAM6CQgAEAcQHhCwAzoJCAAQCBAeELADOgkIABAeELADEBg6DggAEAUQHhDxBBCwAxAYOgUIABCABDoGCAAQFhAeOggIABAWEB4QGEoECEEYAVDeBFi3DWD0D2gBcAB4AIABpQWIAZAIkgEHMy0xLjAuMZgBAKABAcgBCsABAQ&sclient=products-cc
C43: Sem Motorista (A4+B2+C2+D4+E6+F6) | D43: =D14+D17+D20+D25+D32+D39 -> 3261.789577
C44: Com Motorista (A4+B2+C2+D4+E6+F6+G1) | D44: =D14+D17+D20+D25+D32+D39+D41 -> 3261.789577
A45: I | C45: Custo Direto p/ km Rodado
C46: Sem Motorista | D46: =D43/D22 -> 0.7248421283 | V46: https://www.google.com/search?q=Pneu+185%2F65+R14&sa=X&hl=pt-BR&biw=1600&bih=757&tbm=shop&sxsrf=AJOqlzVJW-LYM1ZPHImwhsD-4UwyAvTluQ%3A1677158863331&ei=z2n3Y-uxE-zT1sQP0r-OmAs&ved=0ahUKEwir1Z7S36v9AhXsqZUCHdKfA7MQ4dUDCAg&uact=5&oq=Pneu+185%2F65+R14&gs_lcp=Cgtwcm9kdWN0cy1jYxADMgsIABCABBCxAxCDATIFCAAQgAQyBQgAEIAEMgUIABCABDIFCAAQgAQyBQgAEIAEMgUIABCABDIFCAAQgAQyBQgAEIAEMgUIABCABEoECEEYAFD5A1jGCWC1EGgAcAB4AIABrQmIAdcbkgEHNS0yLjAuMpgBAKABAcABAQ&sclient=products-cc
C47: Com Motorista | D47: =D44/D22 -> 0.7248421283
A48: J | C48: Preço cobrado sem BDI | D48: =D43*(1+D5) -> 3261.789577
A49: J1 | C49: Sem Motorista | D49: =D48 -> 3261.789577
A50: J2 | C50: Com Motorista | D50: =D44 -> 3261.789577
A53: * | C53: Calculado com base na taxa SELIC JUNHO/2025: | D53: 0.15
A55: ** | C55: Conservação e manutenção - é calculado com o uso de um coeficiente multiplicador "k", conforme tabela abaixo, sobre a
C56: depreciação mensal do equipamento (Item A da planilha de composição de preços). Os valores de K são fornecidos por
C57: fabricantes.
C58: Metodologia conforme a bibliografia "Como Preparar Orçamentos de Obras", 3 edição, Aldo Dórea Mattos, 2019.
F82: PREÇO DA GASOLINA | G82: 6.14
F84: https://precos.petrobras.com.br/sele%C3%A7%C3%A3o-de-estados-gasolina
